[Event "GER-ch Youth U14 2020"]
[Site "Willingen"]
[Date "2020.10.23"]
[Round "6.11"]
[White "Ermitsch, Magnus"]
[Black "Bungarten, Jona"]
[Result "1/2-1/2"]
[ECO "C60"]
[WhiteElo "2049"]
[BlackElo "1834"]
[Annotator "ChessBase"]
[PlyCount "79"]
[EventDate "2020.10.20"]
[EventType "swiss"]
[EventRounds "7"]
[EventCountry "GER"]
[SourceTitle "playchess.com"]
[Source "ChessBase"]
[SourceQuality "1"]
[TimeControl "40/5400+30:1800+30"]

1. e4 {[%emt 0:00:19]} e5 {[%emt 0:00:00]} 2. Nf3 {[%emt 0:00:45]} Nc6 {[%emt 0:00:00]} 3. Bb5 {[%emt 0:00:52]} Nge7 {[%emt 0:00:05]} 4. Nc3 {[%emt 0:01:30]} Ng6 {[%emt 0:00:25]} 5. O-O {[%emt 0:03:03]} Bc5 {[%emt 0:00:19]} 6. a3 {[%emt 0:07:51]} O-O {[%emt 0:01:56]} 7. b4 {[%emt 0:01:25]} Be7 {[%emt 0:03:46]} 8. Bc4 {[%emt 0:04:50]} d6 {[%emt 0:05:20]} 9. d3 {[%emt 0:01:40]} Bg4 {[%emt 0:02:24]} 10. h3 {[%emt 0:01:12]} Bxf3 {[%emt 0:01:21]} 11. Qxf3 {[%emt 0:00:29]} Nd4 {[%emt 0:00:08]} 12. Qd1 {[%emt 0:01:33]} Bg5 {[%emt 0:00:54]} 13. Be3 {[%emt 0:13:52]} c6 {[%emt 0:25:16]} 14. Ne2 {[%emt 0:15:44]} Ne6 {[%emt 0:04:06]} 15. d4 {[%emt 0:06:32]} Bf4 {[%emt 0:15:05]} 16. dxe5 {[%emt 0:08:15]} Bxe5 {[%emt 0:01:32]} 17. Rb1 {[%emt 0:01:55]} Qh4 {[%emt 0:03:47]} 18. Rb3 {[%emt 0:09:51]} d5 {[%emt 0:05:35]} 19. exd5 {[%emt 0:01:56]} Qxc4 {[%emt 0:00:09]} 20. dxe6 {[%emt 0:00:10]} fxe6 {[%emt 0:00:17]} 21. Qd3 {[%emt 0:01:27]} Qh4 {[%emt 0:02:41]} 22. Bc5 {[%emt 0:02:03]} Rf7 {[%emt 0:05:19]} 23. Qe3 {[%emt 0:02:34]} Qf6 {[%emt 0:04:31]} 24. Bd4 {[%emt 0:01:40]} Bxd4 {[%emt 0:00:57]} 25. Qxd4 {[%emt 0:00:19]} e5 {[%emt 0:00:46]} 26. Qe4 {[%emt 0:00:24]} Rd8 {[%emt 0:01:09]} 27. Rd3 {[%emt 0:02:08]} Rxd3 {[%emt 0:00:42]} 28. Qxd3 {[%emt 0:00:13]} Qg5 {[%emt 0:02:02]} 29. Rd1 {[%emt 0:02:28]} Rf8 {[%emt 0:02:55]} 30. Qg3 {[%emt 0:00:49]} Qf5 {[%emt 0:00:20]} 31. Rd2 {[%emt 0:01:03]} h6 {[%emt 0:02:54]} 32. Qe3 {[%emt 0:01:06]} Nf4 {[%emt 0:02:30]} 33. Nxf4 {[%emt 0:02:27]} Qxf4 {[%emt 0:00:44]} 34. Re2 {[%emt 0:01:15]} Rd8 {[%emt 0:02:49]} 35. Qxf4 {[%emt 0:02:50]} exf4 {[%emt 0:00:08]} 36. Re7 {[%emt 0:00:51]} Rd1+ {[%emt 0:00:12]} 37. Kh2 {[%emt 0:00:05]} Ra1 {[%emt 0:00:23]} 38. Rxb7 {[%emt 0:00:37]} Rxa3 {[%emt 0:00:05]} 39. Rc7 {[%emt 0:00:54]} Rc3 {[%emt 0:00:37]} 40. Rxa7 {[%emt 0:00:00]} 1/2-1/2

[Event "GER-ch Youth U14 2020"]
[Site "Willingen"]
[Date "2020.10.23"]
[Round "6.12"]
[White "Fuhrmann, Bahne"]
[Black "Pikalow, Michael"]
[Result "1-0"]
[ECO "B52"]
[WhiteElo "1816"]
[BlackElo "2021"]
[Annotator "ChessBase"]
[PlyCount "55"]
[EventDate "2020.10.20"]
[EventType "swiss"]
[EventRounds "7"]
[EventCountry "GER"]
[SourceTitle "playchess.com"]
[Source "ChessBase"]
[SourceQuality "1"]
[TimeControl "40/5400+30:1800+30"]

1. e4 {[%emt 0:00:00]} c5 {[%emt 0:00:00]} 2. Nf3 {[%emt 0:00:00]} d6 {[%emt 0:00:00]} 3. Bb5+ {[%emt 0:00:00]} Bd7 {[%emt 0:00:00]} 4. Bxd7+ {[%emt 0:00:00]} Qxd7 {[%emt 0:00:00]} 5. c4 {[%emt 0:00:11]} Nf6 {[%emt 0:00:50]} 6. Nc3 {[%emt 0:00:20]} g6 {[%emt 0:00:43]} 7. d4 {[%emt 0:00:52]} cxd4 {[%emt 0:00:08]} 8. Nxd4 {[%emt 0:00:08]} Bg7 {[%emt 0:00:06]} 9. O-O {[%emt 0:00:53]} O-O {[%emt 0:00:06]} 10. h3 {[%emt 0:01:58]} a6 {[%emt 0:03:44]} 11. a4 {[%emt 0:01:52]} Rc8 {[%emt 0:02:15]} 12. b3 {[%emt 0:01:54]} Qd8 {[%emt 0:08:21]} 13. Be3 {[%emt 0:06:41]} Nbd7 {[%emt 0:00:34]} 14. Rb1 {[%emt 0:02:54]} Nc5 {[%emt 0:12:19]} 15. f3 {[%emt 0:01:13]} Ne6 {[%emt 0:04:47]} 16. e5 {[%emt 0:05:02]} Nxd4 {[%emt 0:12:45]} 17. Bxd4 {[%emt 0:06:19]} dxe5 {[%emt 0:00:55]} 18. Bxe5 {[%emt 0:02:43]} Qa5 {[%emt 0:05:08]} 19. Bxf6 {[%emt 0:06:00]} Bxf6 {[%emt 0:00:11]} 20. Nd5 {[%emt 0:00:25]} Qc5+ {[%emt 0:00:34]} 21. Kh1 {[%emt 0:00:51]} Bh4 {[%emt 0:17:26]} 22. b4 {[%emt 0:07:32]} Qd6 {[%emt 0:01:03]} 23. Qd4 {[%emt 0:02:38]} Bg3 {[%emt 0:09:48]} 24. Qb6 {[%emt 0:08:59]} Rab8 {[%emt 0:05:06]} 25. Qxd6 {[%emt 0:01:52]} Bxd6 {[%emt 0:01:09]} 26. c5 {[%emt 0:01:01]} e6 {[%emt 0:01:40]} 27. Nf6+ {[%emt 0:00:46]} Kg7 {[%emt 0:02:25]} 28. Nd7 {[%emt 0:00:32]} 1-0

[Event "GER-ch Youth U14 2020"]
[Site "Willingen"]
[Date "2020.10.23"]
[Round "6.13"]
[White "Hecht, Jonas Christian"]
[Black "Sallandt, Frido"]
[Result "1-0"]
[ECO "D52"]
[WhiteElo "1764"]
[BlackElo "1770"]
[Annotator "NA"]
[PlyCount "85"]
[EventDate "2020.10.20"]
[EventType "swiss"]
[EventRounds "7"]
[EventCountry "GER"]
[SourceTitle "playchess.com"]
[Source "ChessBase"]
[SourceQuality "1"]
[TimeControl "40/5400+30:1800+30"]

1. d4 {[%emt 0:00:00]} Nf6 {[%emt 0:00:00]} 2. c4 {[%emt 0:00:00]} e6 {[%emt 0:00:57]} 3. Nf3 {[%emt 0:00:21]} d5 {[%emt 0:00:53]} 4. Bg5 {[%emt 0:03:01]} c6 {[%emt 0:03:30]} 5. e3 {[%emt 0:02:53]} Nbd7 {[%emt 0:01:13]} 6. Nc3 {[%emt 0:00:44]} Bd6 {[%emt 0:00:40]} 7. Bd3 {[%emt 0:01:42]} dxc4 {[%emt 0:01:08]} 8. Bxc4 {[%emt 0:00:43]} b5 {[%emt 0:00:14]} 9. Bd3 {[%emt 0:01:34]} a6 {[%emt 0:00:59]} 10. Rc1 {[%emt 0:01:52]} Bb7 {[%emt 0:00:45]} 11. O-O {[%emt 0:04:29]} O-O {[%emt 0:02:42]} 12. e4 {[%emt 0:11:10]} e5 {[%emt 0:01:57]} 13. dxe5 {[%emt 0:01:25]} Nxe5 {[%emt 0:00:14]} 14. Nxe5 {[%emt 0:00:18]} Bxe5 {[%emt 0:00:06]} 15. f4 {[%emt 0:00:40]} Bd4+ {[%emt 0:08:02]} 16. Kh1 {[%emt 0:00:31]} c5 {[%emt 0:04:29]} 17. e5 {[%emt 0:03:04]} Bxc3 {[%emt 0:00:15]} 18. Bxf6 {[%emt 0:01:42]} Qd5 {[%emt 0:14:46]} 19. Qg4 {[%emt 0:00:27]} g6 {[%emt 0:00:20]} 20. Rxc3 {[%emt 0:00:11]} b4 {[%emt 0:00:35]} 21. Bc4 {[%emt 0:02:03]} Qxg2+ {[%emt 0:01:41]} 22. Qxg2 {[%emt 0:00:40]} Bxg2+ {[%emt 0:00:08]} 23. Kxg2 {[%emt 0:00:13]} bxc3 {[%emt 0:00:09]} 24. e6 {[%emt 0:00:40]} cxb2 {[%emt 0:01:32]} 25. exf7+ {[%emt 0:00:09]} Rxf7 {[%emt 0:00:07]} 26. Bxf7+ {[%emt 0:00:17]} Kxf7 {[%emt 0:00:12]} 27. Bxb2 {[%emt 0:00:07]} Rd8 {[%emt 0:02:42]} 28. Rf2 {[%emt 0:02:55]} Rd5 {[%emt 0:05:49]} 29. h4 {[%emt 0:06:19]} Ke6 {[%emt 0:00:38]} 30. Re2+ {[%emt 0:01:18]} Kd7 {[%emt 0:02:14]} 31. Be5 {[%emt 0:01:35]} Kc6 {[%emt 0:01:40]} 32. Kf3 {[%emt 0:05:07]} c4 {[%emt 0:03:06]} 33. h5 {[%emt 0:06:23]} gxh5 {[%emt 0:05:21]} 34. f5 {[%emt 0:02:25]} Kd7 {[%emt 0:02:12]} 35. f6 {[%emt 0:07:28]} Ke6 {[%emt 0:01:07]} 36. Bc3+ {[%emt 0:00:19]} Kf7 {[%emt 0:00:15]} 37. Re7+ {[%emt 0:00:15]} Kf8 {[%emt 0:01:16]} 38. Ke4 {[%emt 0:00:11]} Rd1 {[%emt 0:02:02]} 39. Rxh7 {[%emt 0:00:31]} Rf1 {[%emt 0:00:58]} 40. Rxh5 {[%emt 0:00:14]} Rc1 {[%emt 0:00:52]} 41. Kd4 {[%emt 0:31:07]} Rc2 {[%emt 0:30:34]} 42. a3 {[%emt 0:01:29]} Ra2 {[%emt 0:00:23]} 43. Rh7 {[%emt 0:00:48]} 1-0

[Event "GER-ch Youth U14 2020"]
[Site "Willingen"]
[Date "2020.10.23"]
[Round "6.14"]
[White "Freude, Max"]
[Black "Kageler, Anton Paul"]
[Result "0-1"]
[ECO "B76"]
[WhiteElo "1850"]
[BlackElo "1664"]
[Annotator "NA"]
[PlyCount "110"]
[EventDate "2020.10.20"]
[EventType "swiss"]
[EventRounds "7"]
[EventCountry "GER"]
[SourceTitle "playchess.com"]
[Source "ChessBase"]
[SourceQuality "1"]
[TimeControl "40/5400+30:1800+30"]

1. e4 {[%emt 0:00:00]} c5 {[%emt 0:00:00]} 2. Nf3 {[%emt 0:00:00]} d6 {[%emt 0:00:00]} 3. d4 {[%emt 0:00:00]} cxd4 {[%emt 0:00:07]} 4. Nxd4 {[%emt 0:00:00]} Nf6 {[%emt 0:00:19]} 5. Nc3 {[%emt 0:00:00]} g6 {[%emt 0:00:13]} 6. Be3 {[%emt 0:00:05]} Bg7 {[%emt 0:00:13]} 7. f3 {[%emt 0:00:07]} O-O {[%emt 0:00:18]} 8. Qd2 {[%emt 0:00:07]} Nc6 {[%emt 0:00:16]} 9. g4 {[%emt 0:00:09]} Nxd4 {[%emt 0:01:14]} 10. Bxd4 {[%emt 0:00:26]} Be6 {[%emt 0:00:11]} 11. h4 {[%emt 0:00:47]} Qa5 {[%emt 0:00:27]} 12. a3 {[%emt 0:10:42] B76: Sicilian Dragon: Yugoslav Attack, 9 g4 and 9 0-0-0.} Rfc8 {[%emt 0:03:40] [#]} 13. Qg5 $146 {[%emt 0:08:29]} ({Predecessor:} 13. h5 Rab8 14. hxg6 hxg6 15. Qh2 Rc6 16. b4 Qd8 17. Nb5 Ra8 18. Rd1 Qc8 19. Rd2 a6 20. Bxf6 Bxf6 {½-½ (40) Klugel,J (2550)-Matyukhin,S (2610) RCCA corr 2005}) 13... Qxg5 {[%emt 0:03:53]} 14. hxg5 {[%emt 0:00:25]} Nd7 {[%emt 0:03:05]} 15. Bxg7 {[%emt 0:00:49]} Kxg7 {[%emt 0:00:02]} 16. Be2 {[%emt 0:02:03]} Ne5 {[%emt 0:06:37]} 17. O-O-O {[%emt 0:12:02]} Bc4 {[%emt 0:13:13]} 18. Bxc4 {[%emt 0:09:15]} Rxc4 {[%emt 0:04:04]} 19. Rhf1 {[%emt 0:06:40]} Rac8 {[%emt 0:06:34]} 20. Rf2 $15 {[%emt 0:07:34]} Rxc3 {[%emt 0:09:20]} 21. bxc3 {[%emt 0:00:24]} Rxc3 {[%emt 0:00:02]} 22. Rh2 {[%emt 0:22:13]} Rxf3 {[%emt 0:05:33]} 23. Rdh1 {[%emt 0:01:27]} e6 {[%emt 0:06:49]} 24. Rxh7+ {[%emt 0:00:31]} Kf8 {[%emt 0:00:03]} 25. Rh8+ {[%emt 0:00:36]} Ke7 {[%emt 0:00:03]} 26. Rb8 {[%emt 0:00:30]} Rxa3 {[%emt 0:04:36]} 27. Rhh8 {[%emt 0:02:49]} Kd7 {[%emt 0:06:53]} 28. Rxb7+ {[%emt 0:04:30]} Kc6 {[%emt 0:00:02]} 29. Rbb8 {[%emt 0:00:32]} Kc5 {[%emt 0:02:35]} 30. Rhc8+ {[%emt 0:04:49]} Kd4 {[%emt 0:02:43]} 31. Kb2 {[%emt 0:00:56]} Ra6 {[%emt 0:03:10]} 32. Rb4+ {[%emt 0:01:44]} Ke3 {[%emt 0:00:25]} 33. Rc7 {[%emt 0:01:52]} Kf4 {[%emt 0:02:51]} 34. Rbb7 {[%emt 0:01:29]} Rb6+ {[%emt 0:02:38]} 35. Kc3 {[%emt 0:00:52]} Rxb7 {[%emt 0:00:48]} 36. Rxb7 {[%emt 0:00:07]} Kxe4 {[%emt 0:00:13]} 37. Rxa7 {[%emt 0:00:15]} Kf4 {[%emt 0:06:39]} 38. Ra6 {[%emt 0:01:18]} d5 {[%emt 0:00:38]} 39. Ra4+ {[%emt 0:01:03]} Kxg5 {[%emt 0:00:42]} 40. Kd2 {[%emt 0:00:56]} Nxg4 {[%emt 0:01:34]} 41. Ke2 {[%emt 0:01:38]} Ne5 {[%emt 0:01:25]} 42. Ke3 {[%emt 0:01:32]} Kf5 {[%emt 0:01:10]} 43. Rf4+ {[%emt 0:00:41]} Kg5 {[%emt 0:00:24]} 44. Ra4 {[%emt 0:01:46]} f5 {[%emt 0:02:57]} 45. Rb4 {[%emt 0:01:36]} Kf6 {[%emt 0:09:21]} 46. Ra4 {[%emt 0:01:52]} g5 {[%emt 0:00:21]} 47. Ra8 {[%emt 0:00:37]} f4+ {[%emt 0:00:20]} 48. Kf2 {[%emt 0:00:40]} Ng4+ {[%emt 0:01:06]} 49. Kf3 {[%emt 0:00:13]} Kf5 {[%emt 0:00:15]} 50. Rf8+ {[%emt 0:00:23]} Nf6 {[%emt 0:00:09]} 51. Rf7 {[%emt 0:00:03]} g4+ {[%emt 0:00:26]} 52. Kg2 {[%emt 0:00:06]} e5 {[%emt 0:04:52]} 53. Rf8 {[%emt 0:00:24]} e4 {[%emt 0:00:29]} 54. Rf7 {[%emt 0:00:33]} e3 {[%emt 0:00:19]} 55. Rf8 {[%emt 0:00:07]} f3+ {[%emt 0:00:59]} 0-1

[Event "GER-ch Youth U14 2020"]
[Site "Willingen"]
[Date "2020.10.23"]
[Round "6.15"]
[White "Kort, Felix"]
[Black "Klühs, Gustaf"]
[Result "1/2-1/2"]
[ECO "A52"]
[WhiteElo "1823"]
[BlackElo "1827"]
[Annotator "NA"]
[PlyCount "61"]
[EventDate "2020.10.20"]
[EventType "swiss"]
[EventRounds "7"]
[EventCountry "GER"]
[SourceTitle "playchess.com"]
[Source "ChessBase"]
[SourceQuality "1"]
[TimeControl "40/5400+30:1800+30"]

1. d4 {[%emt 0:00:00]} Nf6 {[%emt 0:00:00]} 2. c4 {[%emt 0:00:00]} e5 {[%emt 0:01:11]} 3. dxe5 {[%emt 0:00:00]} Ng4 {[%emt 0:00:05]} 4. Bf4 {[%emt 0:00:06]} Nc6 {[%emt 0:00:04]} 5. Nf3 {[%emt 0:00:43]} Bb4+ {[%emt 0:00:04]} 6. Nbd2 {[%emt 0:02:10]} Qe7 {[%emt 0:00:15]} 7. a3 {[%emt 0:06:00]} Ngxe5 {[%emt 0:00:08] A52: Budapest Gambit.} 8. Nxe5 {[%emt 0:00:35]} Nxe5 {[%emt 0:00:07]} 9. Qc2 {[%emt 0:05:04]} (9. axb4 $2 {leads to mate.} Nd3#) 9... Bxd2+ {[%emt 0:00:46]} 10. Qxd2 {[%emt 0:08:05]} d6 {[%emt 0:02:31]} 11. e3 {[%emt 0:06:40] [#]} O-O $146 {[%emt 0:00:16]} ({Predecessor:} 11... Be6 12. Rc1 O-O 13. e4 Ng6 14. Bd3 f5 15. Bg5 Qf7 16. exf5 Bxf5 17. O-O Ne5 18. Bxf5 Qxf5 {0-1 (39) Bonitz,R (1470)-Kleiser,S (1476) Haslach im Kinzigtal 2010}) 12. Be2 {[%emt 0:00:30]} Rd8 {[%emt 0:08:33]} 13. O-O {[%emt 0:02:50]} Bd7 {[%emt 0:06:01]} 14. Rac1 {[%emt 0:08:13]} Bc6 {[%emt 0:16:43]} 15. b4 {[%emt 0:04:00]} b6 {[%emt 0:01:35]} 16. Rfd1 {[%emt 0:03:58]} Ba4 {[%emt 0:07:38]} 17. Rf1 {[%emt 0:02:19]} Bc6 {[%emt 0:02:31]} 18. Qc3 {[%emt 0:03:33]} Ng6 {[%emt 0:09:39]} 19. Bg3 $11 {[%emt 0:02:20]} Nh4 {[%emt 0:20:41]} 20. c5 {[%emt 0:15:03]} bxc5 {[%emt 0:09:42]} 21. bxc5 {[%emt 0:00:44]} d5 {[%emt 0:00:38]} 22. Qe5 {[%emt 0:12:38]} Qxe5 {[%emt 0:01:48]} 23. Bxe5 {[%emt 0:00:24]} Rd7 {[%emt 0:00:09]} 24. Bg3 {[%emt 0:01:38]} Ng6 {[%emt 0:00:16]} 25. Rfd1 {[%emt 0:01:55]} Nf8 {[%emt 0:06:14]} 26. Rd2 {[%emt 0:07:40]} f5 {[%emt 0:00:46]} 27. Bf3 {[%emt 0:01:51]} Ne6 {[%emt 0:00:50]} 28. Rcd1 {[%emt 0:02:17]} Rad8 {[%emt 0:00:18]} 29. Rc1 {[%emt 0:00:53]} Kf7 {[%emt 0:00:51]} 30. h4 {[%emt 0:00:30]} g6 {[%emt 0:00:43]} 31. Kf1 {[%emt 0:01:16]} 1/2-1/2

[Event "GER-ch Youth U14 2020"]
[Site "Willingen"]
[Date "2020.10.23"]
[Round "6.16"]
[White "Weidenhöfer, Max"]
[Black "Tovmasyan, Minas"]
[Result "0-1"]
[ECO "B41"]
[WhiteElo "1897"]
[BlackElo "1658"]
[Annotator "NA RC"]
[PlyCount "144"]
[EventDate "2020.10.20"]
[EventType "swiss"]
[EventRounds "7"]
[EventCountry "GER"]
[SourceTitle "playchess.com"]
[Source "ChessBase"]
[SourceQuality "1"]
[TimeControl "40/5400+30:1800+30"]

1. e4 {[%emt 0:00:00]} c5 {[%emt 0:00:00]} 2. Nf3 {[%emt 0:00:00]} e6 {[%emt 0:00:00]} 3. d4 {[%emt 0:00:00]} cxd4 {[%emt 0:00:00]} 4. Nxd4 {[%emt 0:00:00]} a6 {[%emt 0:00:00]} 5. c4 {[%emt 0:00:53]} Qc7 {[%emt 0:00:28]} 6. Nc3 {[%emt 0:00:14]} Nf6 {[%emt 0:00:12]} 7. Be2 {[%emt 0:00:28]} d6 {[%emt 0:01:06]} 8. f4 {[%emt 0:01:16] B41: Sicilian: Kan Variation: 5 c4.} b6 {[%emt 0:04:05]} 9. f5 {[%emt 0:00:34]} e5 {[%emt 0:26:16]} 10. Nb3 {[%emt 0:00:17]} Bb7 {[%emt 0:01:14] [#]} 11. Be3 $146 {[%emt 0:00:08]} ({Predecessor:} 11. Qd3 Nbd7 12. Qf3 Be7 13. g4 b5 14. cxb5 axb5 15. g5 Nxe4 16. Nxe4 d5 17. Ng3 {1-0 (34) Kathmale,S (2264)-Abbas,D (2319) Groningen 2017}) 11... Nbd7 {[%emt 0:04:28]} 12. Bd3 {[%emt 0:14:10]} h5 {[%emt 0:06:24]} 13. Rc1 {[%emt 0:07:04]} Be7 {[%emt 0:14:32]} 14. Nd5 {[%emt 0:06:14]} Bxd5 {[%emt 0:06:35]} 15. cxd5 {[%emt 0:00:14]} Qb7 {[%emt 0:00:51]} 16. Qe2 {[%emt 0:05:52]} O-O {[%emt 0:04:30]} 17. h3 {[%emt 0:06:00]} h4 {[%emt 0:04:14]} 18. Bf2 {[%emt 0:01:30]} Nc5 {[%emt 0:01:52]} 19. Nxc5 {[%emt 0:01:34]} dxc5 {[%emt 0:00:42]} 20. O-O {[%emt 0:01:32]} Rfc8 {[%emt 0:11:38]} 21. Qe1 {[%emt 0:10:16]} b5 {[%emt 0:03:33]} 22. Bxh4 {[%emt 0:01:02]} c4 {[%emt 0:00:31]} 23. Bb1 {[%emt 0:00:28]} a5 {[%emt 0:04:25]} 24. Kh1 {[%emt 0:01:14]} Nh5 {[%emt 0:01:58]} 25. Bg3 {[%emt 0:07:14]} Bf6 {[%emt 0:02:09]} 26. Bh2 {[%emt 0:00:31]} Nf4 {[%emt 0:00:37]} 27. Bxf4 {[%emt 0:00:18]} exf4 {[%emt 0:00:01]} 28. Qe2 {[%emt 0:04:32]} Be5 {[%emt 0:00:23]} 29. Rce1 {[%emt 0:00:22]} f6 {[%emt 0:00:26]} 30. Rd1 {[%emt 0:02:01]} Ra6 {[%emt 0:00:58]} 31. Qd2 {[%emt 0:01:41]} Qc7 {[%emt 0:00:44]} 32. Qe2 {[%emt 0:05:57]} Rb6 {[%emt 0:00:26]} 33. Rc1 {[%emt 0:00:29]} Qd6 {[%emt 0:00:29]} 34. b3 {[%emt 0:00:31]} Qb4 {[%emt 0:00:40]} 35. Bd3 {[%emt 0:03:09]} c3 {[%emt 0:00:31]} 36. Qg4 {[%emt 0:04:50]} Qe7 {[%emt 0:00:25]} 37. Qh4 {[%emt 0:03:26]} Rcb8 {[%emt 0:00:31]} 38. Be2 {[%emt 0:00:21]} Qd6 {[%emt 0:00:35]} 39. Bh5 {[%emt 0:04:08]} Kf8 {[%emt 0:00:22]} 40. Bg6 {[%emt 0:01:39]} Ke7 {[%emt 0:00:32]} 41. Qh7 {[%emt 0:32:31]} R8b7 {[%emt 0:11:45]} 42. Qxg7+ {[%emt 0:00:00]} Kd8 {[%emt 0:01:05]} 43. Qg8+ {[%emt 0:00:00]} Kc7 {[%emt 0:00:06]} 44. Rxf4 {[%emt 0:00:00]} Rb8 {[%emt 0:17:38]} 45. Qf7+ {[%emt 0:00:00]} (45. Qh7+ $142 Qd7 46. Qh6) 45... Qd7 {[%emt 0:00:54]} 46. Qxd7+ {[%emt 0:00:00]} Kxd7 {[%emt 0:00:01]} 47. Rf3 {[%emt 0:00:00]} b4 {[%emt 0:00:37]} 48. Rf2 {[%emt 0:00:00]} a4 $1 {[%emt 0:00:48]} 49. bxa4 {[%emt 0:00:00]} b3 $1 {[%emt 0:01:31]} 50. axb3 {[%emt 0:00:25]} Rxb3 {[%emt 0:00:04]} 51. g3 {[%emt 0:03:22]} Rb1 {[%emt 0:01:05]} ({Black should play} 51... Bxg3 52. Rff1 R8b4) 52. Rfc2 $15 {[%emt 0:00:22]} Rxc1+ {[%emt 0:00:20]} 53. Rxc1 Rb2 {[%emt 0:00:14]} 54. Bh5 {[%emt 0:00:18]} c2 {[%emt 0:00:57]} 55. Kg2 {[%emt 0:00:19]} Bc3 {[%emt 0:00:19]} 56. Kf3 {[%emt 0:07:17]} Bd2 {[%emt 0:00:16]} 57. Rxc2 {[%emt 0:00:20]} Rxc2 {[%emt 0:00:01]} 58. Bf7 {[%emt 0:00:30]} Rc3+ {[%emt 0:00:39]} 59. Ke2 {[%emt 0:00:50]} Bh6 {[%emt 0:00:45]} 60. Kf2 {[%emt 0:00:11]} Re3 {[%emt 0:00:43]} 61. Be6+ {[%emt 0:00:55]} Kd6 {[%emt 0:00:20]} 62. e5+ {[%emt 0:00:29]} Kxe5 {[%emt 0:00:51]} 63. h4 {[%emt 0:00:23]} Ra3 {[%emt 0:00:37]} 64. g4 {[%emt 0:00:26]} Ra2+ {[%emt 0:00:25]} 65. Kf3 {[%emt 0:00:19]} Ra3+ {[%emt 0:00:21]} 66. Ke2 {[%emt 0:00:18]} Kf4 {[%emt 0:00:38]} 67. d6 {[%emt 0:00:31]} Rxa4 {[%emt 0:00:28]} 68. d7 {[%emt 0:00:32]} Rd4 {[%emt 0:00:18]} 69. g5 {[%emt 0:00:22]} fxg5 {[%emt 0:00:47]} 70. hxg5 {[%emt 0:00:23]} Bxg5 {[%emt 0:00:16]} 71. Kf2 {[%emt 0:01:14]} Rd2+ {[%emt 0:00:10]} 72. Ke1 {[%emt 0:00:17]} Ke5 0-1

[Event "GER-ch Youth U14 2020"]
[Site "Willingen"]
[Date "2020.10.23"]
[Round "6.17"]
[White "Schwartz, Oliver"]
[Black "Englert, Luca"]
[Result "1-0"]
[ECO "B07"]
[WhiteElo "1794"]
[BlackElo "1530"]
[Annotator "NA"]
[PlyCount "91"]
[EventDate "2020.10.20"]
[EventType "swiss"]
[EventRounds "7"]
[EventCountry "GER"]
[SourceTitle "playchess.com"]
[Source "ChessBase"]
[SourceQuality "1"]
[TimeControl "40/5400+30:1800+30"]

1. e4 {[%emt 0:00:00]} d6 {[%emt 0:00:00]} 2. d4 {[%emt 0:00:00]} Nf6 {[%emt 0:00:00]} 3. Nc3 {[%emt 0:00:00]} g6 {[%emt 0:00:00]} 4. Be3 {[%emt 0:00:12]} Bg7 {[%emt 0:00:00]} 5. h3 {[%emt 0:00:08]} O-O {[%emt 0:00:00]} 6. f4 {[%emt 0:00:06]} Nbd7 {[%emt 0:00:04]} 7. Nf3 {[%emt 0:01:37]} b6 {[%emt 0:00:26]} 8. e5 {[%emt 0:13:55]} Ne8 {[%emt 0:00:14]} 9. Bd3 {[%emt 0:01:05]} Bb7 {[%emt 0:00:26]} 10. Be4 {[%emt 0:01:11]} Bxe4 {[%emt 0:01:22]} 11. Nxe4 {[%emt 0:00:11]} c5 {[%emt 0:01:54]} 12. c3 {[%emt 0:03:58]} d5 {[%emt 0:02:25]} 13. Nf2 {[%emt 0:01:26]} Nc7 {[%emt 0:00:51]} 14. Qd2 {[%emt 0:02:58]} e6 {[%emt 0:02:38]} 15. h4 {[%emt 0:03:12]} a5 {[%emt 0:02:25]} 16. h5 {[%emt 0:02:22]} a4 {[%emt 0:04:28]} 17. hxg6 {[%emt 0:01:37]} fxg6 {[%emt 0:01:02]} 18. Ng4 {[%emt 0:03:33]} Rf5 {[%emt 0:02:43]} 19. Ng5 {[%emt 0:08:28]} h5 {[%emt 0:00:58]} 20. Nf2 {[%emt 0:00:25]} c4 {[%emt 0:00:57]} 21. a3 {[%emt 0:00:42]} Nf8 {[%emt 0:02:27]} 22. g4 {[%emt 0:01:24]} hxg4 {[%emt 0:00:04]} 23. Nxg4 {[%emt 0:00:12]} Qd7 {[%emt 0:01:28]} 24. Nh6+ {[%emt 0:03:08]} Bxh6 {[%emt 0:01:14]} 25. Rxh6 {[%emt 0:00:07]} Qg7 {[%emt 0:05:34]} 26. Qh2 {[%emt 0:00:21]} Nb5 {[%emt 0:01:40]} 27. Kd2 {[%emt 0:02:05]} Na7 {[%emt 0:00:33]} 28. Rh1 {[%emt 0:00:21]} Rxg5 {[%emt 0:00:17]} 29. fxg5 {[%emt 0:00:24]} Nc6 {[%emt 0:00:54]} 30. Rh8+ {[%emt 0:05:42]} Kf7 {[%emt 0:00:23]} 31. Qf4+ {[%emt 0:00:07]} Ke8 {[%emt 0:01:53]} 32. Qf6 {[%emt 0:05:17]} Qxf6 {[%emt 0:09:17]} 33. gxf6 {[%emt 0:00:56]} Ra7 {[%emt 0:01:07]} 34. Bh6 {[%emt 0:00:37]} Rf7 {[%emt 0:00:10]} 35. Bxf8 {[%emt 0:00:48]} Rxf8 {[%emt 0:00:07]} 36. Rxf8+ {[%emt 0:00:06]} Kxf8 {[%emt 0:00:06]} 37. Rh8+ {[%emt 0:01:01]} Kf7 {[%emt 0:00:27]} 38. Rh7+ {[%emt 0:00:11]} Ke8 {[%emt 0:01:05]} 39. Rb7 {[%emt 0:01:56]} g5 {[%emt 0:00:52]} 40. Rxb6 {[%emt 0:00:27]} Nd8 {[%emt 0:00:08]} 41. Ra6 {[%emt 0:31:53]} g4 {[%emt 0:30:36]} 42. Rxa4 {[%emt 0:00:39]} Nc6 {[%emt 0:01:15]} 43. Ra6 {[%emt 0:01:02]} Nd8 {[%emt 0:00:41]} 44. Ra8 {[%emt 0:00:06]} Kd7 {[%emt 0:00:09]} 45. Rxd8+ {[%emt 0:00:12]} Kxd8 {[%emt 0:00:11]} 46. Ke3 {[%emt 0:00:05]} 1-0